bitfinex-derivatives/quotes_SOLF0:USTF0_20240904
["timestamp","ask_amount","ask_price","bid_price","bid_amount"]
[1725483004691,8.04,133.58,133.55,3.7438]
[1725483004881,8.04,133.58,133.55,3.79939632]
[1725483004882,8.09334539,133.58,133.55,3.79939632]
[1725483005080,8.09334539,133.58,133.55,0.05559632]
[1725483006384,8.09334539,133.58,133.56,3.7438]
[1725483006687,8.09334539,133.58,133.55,0.05559632]
[1725483007080,8.09334539,133.58,133.56,3.7438]
[1725483008584,0.05334539,133.58,133.56,3.7438]
[1725483008784,8.09334539,133.58,133.56,3.7438]
[1725483009383,8.09334539,133.58,133.55,0.05559632]
[1725483009384,0.05334539,133.58,133.57,3.7435]
[1725483029216,40.2,133.58,133.44,20.63167485]
[1725483029419,22.48,133.57,133.34,79.82533073]
[1725483029616,22.48,133.57,133.34,10.30584105]
[1725483029824,44.95,133.57,133.33,69.51948968]
[1725483030009,2.7542,133.63,133.32,1.4385]
[1725483030010,22.48,133.46,133.32,1.4385]
[1725483030215,3.7477,133.42,133.32,1.4385]
[1725483030515,7.4856,133.6,133.32,1.4385]
[1725483030516,3.74203145,133.55,133.32,5.18240641]
[1725483030714,0.27558351,133.54,133.35,11.7897]
[1725483030917,32.16,133.47,133.36,2.662]
[1725483031128,22.47,133.6,133.36,2.662]
[1725483031312,0.27554567,133.59,133.37,8.04]
[1725483031522,0.27554567,133.59,133.36,2.662]
[1725483031523,0.05506822,133.49,133.36,2.662]
[1725483031818,0.05506822,133.49,133.39,8.04]
[1725483032017,8.04,133.46,133.4,1.4273]
[1725483032420,0.04777776,133.44,133.4,1.4273]
[1725483032719,7.493,133.64,133.4,1.4273]
[1725483032912,7.493,133.64,133.45,8.04]
[1725483033109,8.04,133.48,133.4,109.64868625]
[1725483033510,8.04,133.48,133.41,8.04]
[1725483033726,8.09009053,133.46,133.43,0.04777776]
[1725483034025,0.05009053,133.46,133.43,0.04777776]
[1725483038516,20.14,133.45,133.43,0.04777776]
[1725483038921,0.05009053,133.46,133.43,0.04777776]
[1725483040420,1.418,133.53,133.43,0.04777776]
[1725483040421,20.14,133.5,133.43,0.04777776]
[1725483040621,20.14,133.5,133.41,21.5777]
[1725483040822,3.7458,133.49,133.41,29.06314566]
[1725483041027,20.14,133.5,133.41,25.31514566]
[1725483041235,20.14,133.5,133.41,5.17514566]
[1725483041431,0.050437,133.47,133.44,0.05242647]
[1725483042833,20.190437,133.47,133.44,0.05242647]
[1725483043329,3.7467,133.46,133.44,0.05242647]
[1725483043730,3.7466,133.46,133.44,0.05242647]
[1725483043935,20.14,133.45,133.44,0.05242647]
[1725483044831,23.8869,133.45,133.44,0.05242647]
[1725483045529,3.748,133.41,133.4,108.22138625]
[1725483046229,20.14,133.42,133.4,108.22138625]
[1725483046437,3.7478,133.42,133.4,108.22138625]
[1725483046635,0.05256575,133.42,133.4,108.26682807]
[1725483048738,3.80036575,133.42,133.4,108.26682807]
[1725483049132,0.05256575,133.42,133.4,108.26682807]
[1725483049442,20.19256575,133.42,133.4,108.26682807]
[1725483049938,3.748,133.41,133.4,108.26682807]
[1725483050836,3.80036575,133.42,133.4,108.26682807]
[1725483051038,1.3944,133.5,133.4,128.40682807]
[1725483051233,21.5344,133.5,133.4,128.36138625]
[1725483052132,0.04764864,133.46,133.44,0.05181828]
[1725483053338,0.04764864,133.46,133.44,3.79891828]
[1725483054542,3.7462,133.48,133.44,3.79891828]
[1725483055444,20.14,133.5,133.44,0.05181828]
[1725483055634,0.04881254,133.48,133.44,0.05181828]
[1725483056142,3.7466,133.47,133.44,0.05181828]
[1725483057745,3.79491254,133.48,133.44,0.05181828]
[1725483058241,3.79491254,133.48,133.44,3.79891828]
[1725483058446,0.04881254,133.48,133.44,3.79891828]
[1725483058740,0.04881254,133.48,133.45,3.7469]
[1725483058933,0.04881254,133.48,133.44,0.05181828]
[1725483059138,0.04881254,133.48,133.44,3.79881828]
[1725483059541,0.04881254,133.48,133.44,0.05181828]
[1725483059542,3.79481254,133.48,133.44,0.05181828]
[1725483059740,3.79481254,133.48,133.44,1.45541828]
[1725483060334,3.7466,133.46,133.44,1.45541828]
[1725483061039,3.7464,133.47,133.44,1.45541828]
[1725483061735,23.93491254,133.48,133.44,1.45541828]
[1725483062240,23.93491254,133.48,133.44,5.20251828]
[1725483063841,23.93491254,133.48,133.44,1.45541828]
[1725483063842,0.04881254,133.48,133.44,1.45541828]
[1725483064041,0.04881254,133.48,133.44,21.59541828]
[1725483064238,21.5232,133.53,133.45,1.3808]
[1725483064436,20.14,133.55,133.45,21.5208]
[1725483064942,20.14,133.55,133.49,3.7457]
[1725483064943,3.7447,133.53,133.49,3.7457]
[1725483065338,3.79238659,133.52,133.5,0.04965844]
[1725483065544,20.14,133.51,133.5,0.04965844]
[1725483067447,0.04728659,133.52,133.5,0.04965844]
[1725483067952,0.04728659,133.52,133.5,3.79495844]
[1725483068339,3.79218659,133.52,133.5,0.04965844]
[1725483068542,0.04728659,133.52,133.5,0.04965844]
[1725483069240,23.8852,133.51,133.5,0.04965844]
[1725483069443,20.14,133.51,133.44,2.7422]
[1725483069843,3.7456,133.5,133.46,3.7465]
[1725483070647,0.05106192,133.49,133.47,0.05506086]
[1725483071347,3.79686192,133.49,133.47,0.05506086]
[1725483074149,0.05106192,133.49,133.47,0.05506086]
[1725483074545,0.05106192,133.49,133.47,3.80136086]
[1725483075049,0.05106192,133.49,133.47,0.05506086]
[1725483075249,0.05106192,133.49,133.47,3.80126086]
[1725483078750,20.14,133.48,133.4,108.22138625]
[1725483078948,20.14,133.48,133.41,2.8167]
[1725483079252,20.14,133.48,133.42,1.3008]
[1725483079549,3.7465,133.47,133.43,3.7473]
[1725483079744,0.04953563,133.46,133.44,0.05624436]
[1725483080151,3.79613563,133.46,133.44,0.05624436]
[1725483080749,0.04953563,133.46,133.44,3.80334436]
[1725483081146,0.04953563,133.46,133.44,0.05624436]
[1725483081343,0.04953563,133.46,133.45,3.7469]
[1725483082154,3.746,133.49,133.45,3.7469]
[1725483082751,3.746,133.49,133.46,3.7465]
[1725483083051,3.80000863,133.49,133.46,3.7465]
[1725483086456,3.80000863,133.49,133.47,3.7462]
[1725483086745,235.4852,133.61,133.48,20.14]
[1725483086957,20.14,133.57,133.49,1.3656]
[1725483087141,3.65379359,133.56,133.51,3.745]
[1725483087339,20.14,133.55,133.51,3.745]
[1725483087749,3.8000272,133.54,133.52,0.04763114]
[1725483088144,0.0555272,133.54,133.52,3.79253114]
[1725483089751,0.0555272,133.54,133.53,3.7446]
[1725483091056,0.0555272,133.54,133.52,3.79233114]
[1725483092852,0.0555272,133.54,133.53,3.7446]
[1725483093852,0.0555272,133.54,133.52,3.79233114]
[1725483096266,0.0555272,133.54,133.53,3.7446]
[1725483096862,0.0555272,133.54,133.52,3.79243114]
[1725483098065,3.7999272,133.54,133.52,3.79243114]
[1725483099665,23.8846,133.53,133.52,0.04763114]
[1725483099967,20.14,133.53,133.52,0.04763114]
[1725483100865,3.7999272,133.54,133.52,3.79253114]
[1725483101260,0.0555272,133.54,133.52,0.04763114]
[1725483101564,0.0555272,133.54,133.53,3.7446]
[1725483105660,0.0555272,133.54,133.52,3.79243114]
[1725483106470,3.7999272,133.54,133.52,0.04763114]
[1725483107976,0.0555272,133.54,133.52,3.79243114]
[1725483109775,0.0555272,133.54,133.53,3.7446]
[1725483111176,0.0555272,133.54,133.52,3.79243114]
[1725483112971,3.7999272,133.54,133.52,3.79243114]
[1725483113375,3.7999272,133.54,133.52,0.04763114]
[1725483117874,3.7446,133.53,133.52,0.04763114]
[1725483122481,3.7999272,133.54,133.52,3.79253114]
[1725483122691,0.0555272,133.54,133.52,0.04763114]
[1725483123183,0.0555272,133.54,133.53,3.7446]
[1725483126385,0.0555272,133.54,133.52,0.04763114]
[1725483126781,3.7446,133.53,133.52,0.04763114]
[1725483128087,3.7999272,133.54,133.52,0.04763114]
[1725483128683,0.0555272,133.54,133.52,0.04763114]
[1725483129181,0.0555272,133.54,133.52,3.79233114]
[1725483130289,0.0555272,133.54,133.53,3.7446]
[1725483131481,3.7999272,133.54,133.52,3.79243114]
[1725483131688,0.0555272,133.54,133.52,0.04763114]
[1725483131889,0.0555272,133.54,133.52,20.18763114]
[1725483132082,3.7433,133.58,133.52,20.18763114]
[1725483132579,3.7433,133.58,133.55,3.7439]
[1725483132986,3.79715935,133.58,133.55,3.79763473]
[1725483133387,3.7436,133.57,133.55,3.79763473]
[1725483134293,3.7436,133.57,133.55,0.05373473]
[1725483137087,3.7438,133.56,133.55,0.05373473]
[1725483138298,3.7436,133.57,133.55,3.79783473]
[1725483138490,0.05385935,133.58,133.55,0.05373473]
[1725483138790,0.05385935,133.58,133.55,20.19373473]
[1725483138988,1.303,133.64,133.56,2.8016]
[1725483139184,20.14,133.65,133.56,2.8016]
[1725483139386,3.7419,133.63,133.6,3.7425]
[1725483139699,20.14,133.65,133.6,3.7425]
[1725483139993,3.742,133.63,133.61,0.04921832]
[1725483140990,3.742,133.63,133.61,3.79151832]
[1725483142097,3.79487966,133.64,133.61,3.79151832]
[1725483142293,0.05317966,133.64,133.63,3.7418]
[1725483142489,0.05317966,133.64,133.61,0.04921832]
[1725483143396,0.05317966,133.64,133.62,3.7419]
[1725483146290,3.79477966,133.64,133.61,3.79151832]
[1725483147193,3.7419,133.63,133.61,0.04921832]
[1725483147993,3.7421,133.62,133.61,0.04921832]
[1725483149690,23.8821,133.62,133.61,0.04921832]
[1725483149887,23.8821,133.62,133.56,2.8016]
[1725483149888,3.7433,133.58,133.56,2.8016]
[1725483150898,3.7433,133.58,133.56,2.85488368]
[1725483150899,3.79067914,133.58,133.56,2.85488368]
[1725483152099,0.04737914,133.58,133.56,2.85488368]
[1725483153095,3.79057914,133.58,133.56,2.85488368]
[1725483153895,3.7435,133.57,133.56,0.05328368]
[1725483175208,11.8035,133.57,133.56,0.05328368]
[1725483180614,3.7435,133.57,133.56,0.05328368]
[1725483190317,0.04737914,133.58,133.56,0.05328368]
[1725483191319,0.04737914,133.58,133.57,3.7435]
[1725483192315,0.04737914,133.58,133.56,0.05328368]
[1725483192517,8.06,133.57,133.51,2.8574]
[1725483192820,8.06,133.54,133.51,2.8574]
[1725483193124,8.06,133.54,133.43,7.4944]
[1725483193125,11.8049,133.52,133.49,3.7456]
[1725483193525,11.8523068,133.52,133.49,3.80256725]
[1725483194422,11.8523068,133.52,133.49,0.05696725]
[1725483194627,0.0474068,133.52,133.49,0.05696725]
[1725483194822,0.0474068,133.52,133.49,1.40926725]
[1725483195128,0.0474068,133.52,133.5,3.7455]
[1725483195730,3.7923068,133.52,133.49,6.48906725]
[1725483195927,11.8523068,133.52,133.49,6.48906725]
[1725483199238,11.8523068,133.52,133.5,3.7454]
[1725483199640,3.7923068,133.52,133.5,3.7454]
[1725483201341,3.7452,133.51,133.49,6.48906725]
[1725483203034,0.0474068,133.52,133.49,2.74346725]
[1725483203035,3.7925068,133.52,133.49,2.74346725]
[1725483203243,3.7925068,133.52,133.5,3.7454]
[1725483205343,3.7452,133.51,133.49,5.15486725]
[1725483207041,8.1074068,133.52,133.49,5.15486725]
[1725483207247,8.1074068,133.52,133.49,1.40926725]
[1725483207850,3.7452,133.51,133.49,1.40926725]
[1725483209746,3.7452,133.51,133.49,5.15486725]
[1725483211648,3.7455,133.5,133.49,0.05696725]
[1725483212955,3.7453,133.51,133.49,3.80266725]
[1725483218346,0.0474068,133.52,133.51,3.7452]
[1725483233262,8.06,133.56,133.55,3.7441]
[1725483236163,8.11269515,133.57,133.54,0.05082292]
[1725483236361,0.05269515,133.57,133.54,0.05082292]
[1725483237465,0.05269515,133.57,133.56,3.7438]
[1725483241964,9.65482948,133.66,133.61,3.7423]
[1725483242164,8.06,133.64,133.57,8.06]
[1725483242365,11.8021,133.62,133.57,8.06]
[1725483242861,11.8021,133.62,133.55,2.8255]
[1725483243065,8.109701,133.6,133.57,3.79588071]
[1725483243270,8.11112827,133.6,133.57,3.8004182]
[1725483243465,11.85392827,133.6,133.57,3.8004182]
[1725483247475,0.05112827,133.6,133.58,3.7432]
[1725483248364,0.05112827,133.6,133.59,3.7429]
[1725483252472,3.7409,133.67,133.59,40.3]
[1725483252677,3.7409,133.67,133.62,8.06]
[1725483252977,3.7409,133.67,133.64,3.7414]
[1725483252978,11.8009,133.67,133.64,3.7414]
[1725483253476,11.84892025,133.67,133.64,3.79099902]
[1725483254363,3.741,133.66,133.64,3.79099902]
[1725483255676,11.84882025,133.67,133.64,3.79099902]
[1725483255876,3.78882025,133.67,133.65,3.7412]
[1725483256077,0.04802025,133.67,133.65,3.7412]
[1725483256474,0.04802025,133.67,133.66,3.741]
[1725483275808,0.04802025,133.67,133.66,11.801]
[1725483276102,8.06,133.74,133.66,8.06]
[1725483276294,3.7393,133.73,133.69,8.06]
[1725483276698,8.06,133.74,133.7,3.7397]
[1725483276908,3.7891154,133.73,133.71,0.04770855]
[1725483277306,0.0498154,133.73,133.71,3.78730855]
[1725483278402,3.7888154,133.73,133.71,3.78730855]
[1725483282104,0.0498154,133.73,133.72,3.7393]
[1725483284304,0.0498154,133.73,133.72,11.7993]
[1725483290203,9.477,133.79,133.74,3.7385]
[1725483290404,1.417,133.79,133.75,8.06]
[1725483290602,8.06,133.82,133.76,8.06]
[1725483290810,3.7375,133.79,133.76,8.06]
[1725483291005,3.7375,133.79,133.77,3.7379]
[1725483291206,3.7375,133.79,133.77,0.0572817]
[1725483291512,0.04868531,133.79,133.77,3.7949817]
[1725483291699,0.04868531,133.79,133.77,0.0572817]
[1725483293409,0.04868531,133.79,133.78,3.7376]
[1725483296100,0.04868531,133.79,133.78,11.7976]
[1725483300310,8.10868531,133.79,133.68,7.4806]
[1725483300503,8.06,133.79,133.72,8.06]
[1725483300910,3.7376,133.78,133.75,3.7383]
[1725483301511,3.78903841,133.78,133.75,3.78581742]
[1725483302514,3.7379,133.77,133.75,3.78581742]
[1725483302712,3.7379,133.77,133.75,0.04751742]
[1725483303213,3.7379,133.77,133.75,3.78591742]
[1725483306113,3.7379,133.77,133.75,0.04751742]
[1725483308120,3.7382,133.76,133.75,0.04751742]
[1725483308915,3.738,133.77,133.75,3.78591742]
[1725483314417,3.7382,133.76,133.75,0.04751742]
[1725483314621,8.06,133.76,133.69,2.659]
[1725483314818,8.06,133.75,133.69,2.659]
[1725483315016,8.06,133.75,133.7,3.7397]
[1725483315613,8.06,133.75,133.71,0.05471135]
[1725483315818,3.7394,133.72,133.71,0.05471135]
[1725483316120,0.04738391,133.74,133.71,8.11471135]
[1725483316320,0.04738391,133.74,133.72,11.799]
[1725483316520,0.04738391,133.74,133.72,8.06]
[1725483317523,0.04738391,133.74,133.73,3.739]
[1725483326026,3.7383,133.76,133.74,3.7386]
[1725483327028,3.78890934,133.76,133.74,3.7386]
[1725483327928,0.05060934,133.76,133.75,3.7385]
[1725483329233,12.61988045,133.85,133.75,8.06]
[1725483329538,3.82608045,133.85,133.79,8.06]
[1725483329831,3.7364,133.83,133.8,3.7368]
[1725483330138,3.78767623,133.83,133.8,0.05345941]
[1725483330331,0.05127623,133.83,133.81,3.7366]
[1725483330529,0.05127623,133.83,133.8,8.11345941]
[1725483330730,0.05127623,133.83,133.82,8.06]
[1725483330930,0.05127623,133.83,133.82,3.7365]
[1725483332136,0.05127623,133.83,133.81,3.7366]
[1725483333138,3.78767623,133.83,133.8,3.79045941]
[1725483333731,0.05127623,133.83,133.8,0.05345941]
[1725483333940,3.78767623,133.83,133.8,0.05345941]
[1725483334533,3.78767623,133.83,133.8,3.79045941]
[1725483334838,3.7366,133.82,133.8,3.79045941]
[1725483335939,3.78757623,133.83,133.8,3.79045941]
[1725483336142,0.05127623,133.83,133.81,3.7367]
[1725483337240,0.05127623,133.83,133.82,3.7365]
[1725483340134,0.05127623,133.83,133.82,11.7965]
[1725483340343,3.7355,133.86,133.83,11.7961]
[1725483340641,3.7355,133.86,133.83,8.06]
[1725483340843,3.7355,133.86,133.83,11.7961]
[1725483341342,3.78599543,133.86,133.83,11.8441621]
[1725483343241,3.78599543,133.86,133.84,3.7359]
[1725483348037,3.78599543,133.86,133.83,11.8441621]
[1725483349045,3.78599543,133.86,133.84,3.7359]
[1725483349938,0.05049543,133.86,133.85,3.7357]
[1725483350246,0.05049543,133.86,133.85,11.7957]
[1725483350542,8.06,133.92,133.86,3.7351]
[1725483350938,2.2739,133.94,133.87,8.06]
[1725483351139,10.3339,133.94,133.88,8.06]
[1725483351344,9.453,133.94,133.88,8.06]
[1725483351545,3.78099692,133.92,133.9,0.05399251]
[1725483352142,0.04719692,133.92,133.9,0.05399251]
[1725483352542,0.04719692,133.92,133.9,8.11399251]
[1725483352842,0.04719692,133.92,133.9,0.05399251]
[1725483353840,0.04719692,133.92,133.9,3.78809251]
[1725483354948,0.04719692,133.92,133.91,3.734]
[1725483355344,0.04719692,133.92,133.9,0.05399251]
[1725483355650,0.04719692,133.92,133.9,3.78819251]
[1725483356043,0.04719692,133.92,133.9,0.05399251]
[1725483356548,3.734,133.91,133.9,0.05399251]
[1725483359950,8.06,133.91,133.85,11.7955]
[1725483360845,8.11108405,133.89,133.87,0.05627267]
[1725483361057,8.11218559,133.89,133.87,0.05627267]
[1725483361247,3.7348,133.88,133.87,0.05627267]
[1725483363547,0.05218559,133.89,133.87,11.85127267]
[1725483364053,3.78688559,133.89,133.87,11.85127267]
[1725483366354,0.05218559,133.89,133.87,11.85127267]
[1725483366753,0.05218559,133.89,133.88,3.7348]
[1725483370047,3.78668559,133.89,133.87,11.85127267]
[1725483370252,3.78668559,133.89,133.87,3.79127267]
[1725483371352,0.05218559,133.89,133.88,11.7948]
[1725483376954,0.05218559,133.89,133.88,3.7348]
[1725483378353,0.05218559,133.89,133.88,11.7948]
[1725483379052,0.05218559,133.89,133.88,3.7348]
[1725483380354,0.05218559,133.89,133.87,3.79127267]
[1725483380951,3.78688559,133.89,133.87,0.05627267]
[1725483383159,3.78688559,133.89,133.87,3.79137267]
[1725483383360,3.78688559,133.89,133.87,11.85137267]
[1725483384364,0.05218559,133.89,133.88,15.60811241]
[1725483387164,0.05218559,133.89,133.88,17.05181241]
[1725483387762,22.44,134.01,133.88,13.31701241]
[1725483387963,0.27459882,133.96,133.91,8.06]
[1725483388270,3.96800562,133.96,133.91,8.06]
[1725483388460,3.7333,133.94,133.92,3.7337]
[1725483388660,3.78646991,133.94,133.92,3.78273979]
[1725483389167,3.78646991,133.94,133.92,0.04903979]
[1725483389767,3.7334,133.93,133.92,0.04903979]
[1725483390579,0.05316991,133.94,133.92,3.78253979]
[1725483391664,0.05316991,133.94,133.93,3.7334]
[1725483392359,14.15616705,134.1,133.94,3.7331]
[1725483392564,0.27452316,133.99,133.94,11.7931]
[1725483392765,3.7325,133.97,133.95,3.7329]
[1725483393367,3.78339436,133.97,133.95,3.78585441]
[1725483394071,0.05089436,133.97,133.96,8.06]
[1725483394573,0.05089436,133.97,133.96,11.7926]
[1725483394768,1.0,134.0,133.96,11.7926]
[1725483394769,1.0,134.0,133.96,8.06]
[1725483394961,1.0,134.0,133.98,8.06]
[1725483395163,1.0,134.0,133.98,11.7919]
[1725483395467,1.0,134.0,133.98,3.7319]
[1725483395772,1.04959727,134.0,133.98,3.7319]
[1725483396161,1.04959727,134.0,133.98,3.732]
[1725483398172,1.04959727,134.0,133.97,8.06]
[1725483398573,1.04959727,134.0,133.95,3.81527803]
[1725483398775,1.04959727,134.0,133.97,8.06]
[1725483400263,4.78119727,134.0,133.98,3.732]
[1725483400773,4.78119727,134.0,133.97,8.06]
[1725483400774,1.04959727,134.0,133.96,1.3412]
[1725483401166,1.04959727,134.0,133.96,5.0737]
[1725483401563,3.7319,133.99,133.96,5.0737]
[1725483402068,1.04959727,134.0,133.97,3.7321]
[1725483402269,1.04959727,134.0,133.98,8.06]
[1725483402667,1.04959727,134.0,133.99,3.7318]
[1725483403379,1.04959727,134.0,133.99,11.7918]
[1725483403577,1.04959727,134.0,133.99,13.1086]
[1725483406071,3.7305,134.04,134.01,3.7311]
[1725483406271,3.7305,134.04,134.0,8.06]
[1725483406874,3.7302,134.05,134.02,8.06]
[1725483407070,9.4567,134.12,134.05,8.06]
[1725483407277,8.11246646,134.1,134.07,0.05636597]
[1725483407477,3.7293,134.08,134.07,0.05636597]
[1725483409573,11.7893,134.08,134.07,0.05636597]
[1725483410378,3.7293,134.08,134.07,0.05636597]
[1725483410577,11.7893,134.08,134.07,0.05636597]
[1725483411586,3.7293,134.08,134.07,0.05636597]
[1725483411790,11.7893,134.08,134.07,0.05636597]
[1725483413978,8.06,134.08,133.99,1.3168]
[1725483414184,8.06,134.05,133.99,9.3768]
[1725483414379,11.81802387,134.04,133.99,1.3168]
[1725483414688,8.06,134.04,133.98,11.792]
[1725483414883,0.04969741,134.02,134.0,0.05213051]
[1725483415084,3.7311,134.02,134.0,0.05213051]
[1725483415284,0.05291149,134.02,134.0,0.05213051]
[1725483415786,3.7312,134.01,134.0,0.05213051]
[1725483420386,11.7912,134.01,134.0,0.05213051]
[1725483420796,3.7312,134.01,134.0,0.05213051]
[1725483421087,0.05291149,134.02,134.0,0.05213051]
[1725483421088,3.78391149,134.02,134.0,0.05213051]
[1725483425487,0.05291149,134.02,134.0,0.05213051]
[1725483425981,0.05291149,134.02,134.01,3.7312]
[1725483428292,0.05291149,134.02,134.0,3.78343051]
[1725483429893,0.05291149,134.02,134.01,8.06]
[1725483430090,1.3933,134.08,134.01,9.4622]
[1725483430281,8.06,134.09,134.03,8.06]
[1725483430488,3.7294,134.08,134.03,11.7872388]
[1725483430888,3.7294,134.08,134.04,3.7302]
[1725483431192,0.05592094,134.07,134.05,0.0523237]
[1725483431586,3.78552094,134.07,134.05,0.0523237]
[1725483431786,0.05592094,134.07,134.05,0.0523237]
[1725483432385,3.78562094,134.07,134.05,0.0523237]
[1725483433489,0.05592094,134.07,134.05,0.0523237]
[1725483433699,11.7898,134.06,134.05,0.0523237]
[1725483434501,3.7298,134.06,134.05,0.0523237]
[1725483437096,0.05592094,134.07,134.05,0.0523237]
[1725483437693,0.05592094,134.07,134.06,3.7298]
[1725483439807,0.05592094,134.07,134.05,0.0523237]
[1725483440096,20.04,134.06,134.05,0.0523237]
[1725483440302,23.7698,134.06,134.05,0.0523237]
[1725483441002,3.7298,134.06,134.05,0.0523237]
[1725483446303,0.05592094,134.07,134.05,3.7823237]
[1725483446898,0.05592094,134.07,134.06,3.7298]
[1725483448304,20.04,134.18,134.06,20.04]
[1725483448605,11.1731,134.26,134.06,25.1096188]
[1725483448606,20.04,134.16,134.06,25.1096188]
[1725483448910,23.80856304,134.16,134.09,3.7288]
[1725483449211,23.80856304,134.16,134.11,0.05371315]
[1725483449403,23.80856304,134.16,134.11,3.78211315]
[1725483449604,23.80856304,134.16,134.11,0.05371315]
[1725483450007,3.7277,134.14,134.11,0.05371315]
[1725483450808,23.80856304,134.16,134.11,0.05371315]
[1725483450809,3.7275,134.15,134.11,0.05371315]
[1725483451007,1.3133,134.17,134.11,0.05371315]
[1725483451211,20.3141829,134.16,134.11,0.05371315]
[1725483451514,42.48,134.16,134.11,0.05371315]
[1725483451708,20.04,134.14,134.11,0.05371315]
[1725483451908,3.7281,134.12,134.11,0.05371315]
[1725483452709,3.7279,134.13,134.11,0.05371315]
[1725483453211,3.7281,134.12,134.11,0.05371315]
[1725483454907,3.82197195,134.17,134.11,0.05371315]
[1725483455113,0.27417853,134.16,134.11,0.05371315]
[1725483455420,3.7275,134.15,134.11,3.78191315]
[1725483456417,3.7271,134.16,134.12,3.7281]
[1725483457616,3.7271,134.16,134.12,3.7279]
[1725483458525,3.7273,134.15,134.12,3.7279]
[1725483458921,3.7273,134.15,134.11,3.78201315]
[1725483459925,3.7276,134.14,134.11,0.05371315]
[1725483460623,3.7279,134.13,134.11,0.05371315]
[1725483460824,20.04,134.17,134.11,3.78211315]
[1725483461015,3.7275,134.15,134.11,3.78211315]
[1725483461423,20.04,134.17,134.11,3.78211315]
[1725483461619,3.7276,134.15,134.11,3.78211315]
[1725483462025,20.04,134.17,134.11,3.78211315]
[1725483462325,3.7275,134.15,134.11,3.78211315]
[1725483462521,20.04,134.17,134.11,3.78211315]
[1725483463522,3.7277,134.14,134.11,0.05371315]
[1725483463723,20.04,134.15,134.11,0.05371315]
[1725483463921,11.7481,134.12,134.11,0.05371315]
[1725483464120,11.67053322,134.12,134.02,1.3304]
[1725483464326,8.02,134.08,134.02,1.3304]
[1725483464626,3.73,134.06,134.02,8.77363194]
[1725483464821,8.02,134.08,134.02,8.77363194]
[1725483465022,8.02,134.08,134.02,5.04283194]
[1725483465222,0.05128053,134.06,134.04,0.04889236]
[1725483466728,3.78108053,134.06,134.04,0.04889236]
[1725483467228,0.05128053,134.06,134.04,0.04889236]
[1725483467728,3.78108053,134.06,134.04,0.04889236]
[1725483468723,3.7301,134.05,134.04,0.04889236]
[1725483482444,23.7801,134.05,134.04,0.04889236]
[1725483487946,11.7601,134.05,134.04,0.04889236]
[1725483490944,3.7301,134.05,134.04,0.04889236]
[1725483500449,8.08128053,134.06,133.98,1.3677]
[1725483500648,8.03,134.01,133.98,1.3677]
[1725483501155,3.7311,134.02,133.99,3.7317]
[1725483501356,11.7611,134.02,133.99,3.7317]
[1725483501655,11.81340726,134.02,133.99,3.77930499]
[1725483506156,3.7312,134.01,133.99,3.77930499]
[1725483507546,3.7315,134.0,133.99,0.04760499]
[1725483507948,7.55036221,134.0,133.99,0.04760499]
[1725483508356,3.7324,133.97,133.93,102.66823843]
[1725483508655,11.7624,133.97,133.93,102.66823843]
[1725483508858,11.7624,133.97,133.94,3.733]
[1725483509253,11.81835686,133.97,133.94,3.7864274]
[1725483509658,3.7327,133.96,133.94,0.0534274]
[1725483510862,8.03,133.96,133.94,0.0534274]
[1725483511259,3.7329,133.95,133.94,0.0534274]
[1725483520461,3.7341,133.91,133.8,193.03566595]
[1725483520664,8.03,133.91,133.88,3.7346]
[1725483521469,8.03,133.91,133.88,0.05598989]
[1725483521470,8.08048574,133.91,133.88,0.05598989]
[1725483522068,3.7344,133.9,133.88,0.05598989]
[1725483522369,8.08048574,133.91,133.88,0.05598989]
[1725483522566,0.05048574,133.91,133.88,8.08598989]
[1725483522763,8.03,133.95,133.9,8.03]
[1725483522967,8.03,133.95,133.91,3.7338]
[1725483523269,3.81886221,134.0,133.91,3.7338]
[1725483523465,2.8003,133.99,133.92,3.7337]
[1725483523660,8.08235027,133.97,133.94,0.05522267]
[1725483523862,3.7327,133.96,133.94,0.05522267]
[1725483525567,0.05235027,133.97,133.94,0.05522267]
[1725483525870,0.05235027,133.97,133.95,8.03]
[1725483526067,0.05235027,133.97,133.96,1.4438]
[1725483526464,8.03,134.0,133.96,1.4438]